Workbook

Sheet Sheet1
A1: 2826 Cogswell Rd. El Monte CA 91732 ( All 12 Units) Rent roll
A3: Year 2017 ( Unit Number ) | B3: JAN | C3: FEB | D3: MAR | E3: APR | F3: MAY | G3: JUN | H3: JUL | I3: AUG | J3: SEP | K3: OCT | L3: NOV | M3: DEC | N3: TOTAL Yr 2017
A4: # A: ( 2 BEDs / 1.5 BATHs) | B4: 0 | C4: 0 | D4: 0 | E4: 0 | F4: 0 | G4: 0 | H4: 1550 | I4: VACATE | J4: VACATE | K4: VACATE | L4: VACATE | M4: VACATE | N4: =SUM(H4:M4) -> 1550
A5: # B: ( 2 BEDs / 1.5 BATHs) | B5: 0 | C5: 0 | D5: 0 | E5: 0 | F5: 0 | G5: 0 | H5: 1450 | I5: 1450 | J5: 1450 | K5: 1450 | L5: 1450 | M5: 1450 | N5: 8700
A6: # C: ( 2 BEDs / 1.5 BATHs) | B6: 0 | C6: 0 | D6: 0 | E6: 0 | F6: 0 | G6: 0 | H6: 1450 | I6: 1450 | J6: 1450 | K6: 1450 | L6: 1450 | M6: 1450 | N6: 8700
A7: # D: ( 2 BEDs / 1.5 BATHs) | B7: 0 | C7: 0 | D7: 0 | E7: 0 | F7: 0 | G7: 0 | H7: 1450 | I7: 1450 | J7: 1450 | K7: 1450 | L7: 1450 | M7: 1450 | N7: 8700
A8: # E: ( 3 BEDs / 1.5 BATHs) | B8: 0 | C8: 0 | D8: 0 | E8: 0 | F8: 0 | G8: 0 | H8: VACATE | I8: VACATE | J8: VACATE | K8: 2100 | L8: 2100 | M8: 2100 | N8: 6300
A9: # F: ( 2 BEDs / 1.5 BATHs) | B9: 0 | C9: 0 | D9: 0 | E9: 0 | F9: 0 | G9: 0 | H9: 1575 | I9: 1575 | J9: 1575 | K9: 1575 | L9: 1575 | M9: VACATE | N9: 7875
A10: # G: ( 2 BEDs / 1.5 BATHs) | B10: 0 | C10: 0 | D10: 0 | E10: 0 | F10: 0 | G10: 0 | H10: 1475 | I10: 1475 | J10: 1475 | K10: 1475 | L10: 1475 | M10: 1475 | N10: 8850
A11: # H: ( 2 BEDs / 1.5 BATHs) | B11: 0 | C11: 0 | D11: 0 | E11: 0 | F11: 0 | G11: 0 | H11: 1550 | I11: 1550 | J11: 1550 | K11: 1550 | L11: 1550 | M11: 1550 | N11: 9300
A12: # J: ( 2 BEDs / 1.5 BATHs) | B12: 0 | C12: 0 | D12: 0 | E12: 0 | F12: 0 | G12: 0 | H12: 1450 | I12: 1450 | J12: 1450 | K12: 1450 | L12: 1450 | M12: 1450 | N12: 8700
A13: # K: ( 2 BEDs / 1.5 BATHs) | B13: 0 | C13: 0 | D13: 0 | E13: 0 | F13: 0 | G13: 0 | H13: 1450 | I13: 1450 | J13: 1450 | K13: 1450 | L13: 1450 | M13: 1450 | N13: 8700
A14: # L: ( 3 BEDs /1.5 BATHs) | B14: 0 | C14: 0 | D14: 0 | E14: 0 | F14: 0 | G14: 0 | H14: 1895 | I14: 1895 | J14: 1895 | K14: 1895 | L14: 1895 | M14: VACATE | N14: 9475
A15: #M: ( 2 BEDs /1.5 BATHs) | B15: 0 | C15: 0 | D15: 0 | E15: 0 | F15: 0 | G15: 0 | H15: 1450 | I15: 1450 | J15: 1450 | K15: 1450 | L15: 1450 | M15: 1450 | N15: 8700
A16: TOTAL Yr. 2017 | H16: =SUM(H4:H15) -> 16745 | I16: 15195 | J16: 15195 | K16: 17295 | L16: 17295 | M16: 13825 | N16: =SUM(H16:M16) -> 95550
A18: Year 2018 ( Unit Number ) | B18: JAN | C18: FEB | D18: MAR | E18: APR | F18: MAY | G18: JUN | H18: JUL | I18: AUG | J18: SEP | K18: OCT | L18: NOV | M18: DEC | N18: TOTAL Yr 2018
A19: # A: ( 2 BEDs / 1.5 BATHs) | B19: VACATE | C19: VACATE | D19: VACATE | E19: VACATE | F19: VACATE | G19: VACATE | H19: VACATE | I19: VACATE | J19: VACATE | K19: VACATE | L19: VACATE | M19: VACATE | N19: =SUM(B19:M19) -> 0
A20: # B: ( 2 BEDs / 1.5 BATHs) | B20: 1450 | C20: 1450 | D20: 1450 | E20: 1450 | F20: 1450 | G20: 1450 | H20: 1450 | I20: 1450 | J20: 1950 | K20: 1950 | L20: 1950 | M20: 1950 | N20: 19400
A21: # C: ( 2 BEDs / 1.5 BATHs) | B21: 1450 | C21: 1450 | D21: 1450 | E21: 1450 | F21: 1450 | G21: 1450 | H21: 1450 | I21: 1450 | J21: 1950 | K21: 1950 | L21: 1950 | M21: 1950 | N21: 19400
A22: # D: ( 2 BEDs / 1.5 BATHs) | B22: 1450 | C22: 1450 | D22: 1450 | E22: 1450 | F22: 1450 | G22: 1450 | H22: 1450 | I22: 1450 | J22: 1950 | K22: 1950 | L22: VACATE | M22: VACATE | N22: 15500
A23: # E: ( 3 BEDs / 1.5 BATHs) | B23: 2100 | C23: 2100 | D23: 2100 | E23: 2100 | F23: 2100 | G23: 2100 | H23: 2100 | I23: 2100 | J23: 2250 | K23: 2250 | L23: 2250 | M23: 2250 | N23: 25800
A24: # F: ( 2 BEDs / 1.5 BATHs) | B24: VACATE | C24: VACATE | D24: VACATE | E24: VACATE | F24: VACATE | G24: VACATE | H24: 1950 | I24: 1950 | J24: 1950 | K24: 1950 | L24: VACATE | M24: VACATE | N24: 7800
A25: # G: ( 2 BEDs / 1.5 BATHs) | B25: 1475 | C25: 1475 | D25: 1475 | E25: 1475 | F25: 1475 | G25: 1475 | H25: 1475 | I25: 1475 | J25: 1950 | K25: 1950 | L25: 1950 | M25: 1950 | N25: 19600
A26: # H: ( 2 BEDs / 1.5 BATHs) | B26: 1550 | C26: 1550 | D26: 1550 | E26: 1550 | F26: 1550 | G26: 1550 | H26: 1550 | I26: 1550 | J26: VACATE | K26: VACATE | L26: VACATE | M26: VACATE | N26: 12400
A27: # J: ( 2 BEDs / 1.5 BATHs) | B27: VACATE | C27: VACATE | D27: VACATE | E27: VACATE | F27: VACATE | G27: VACATE | H27: VACATE | I27: VACATE | J27: 1950 | K27: 1950 | L27: 1950 | M27: 1950 | N27: 7800
A28: # K: ( 2 BEDs / 1.5 BATHs) | B28: 1450 | C28: 1450 | D28: 1450 | E28: 1450 | F28: 1450 | G28: 1450 | H28: 1450 | I28: VACATE | J28: VACATE | K28: VACATE | L28: VACATE | M28: VACATE | N28: 10150
A29: # L: ( 3 BEDs /1.5 BATHs) | B29: VACATE | C29: VACATE | D29: VACATE | E29: VACATE | F29: VACATE | G29: VACATE | H29: VACATE | I29: 2250 | J29: 2250 | K29: 2250 | L29: 2250 | M29: 2250 | N29: 11250
A30: #M: ( 2 BEDs /1.5 BATHs) | B30: 1450 | C30: 1450 | D30: 1450 | E30: 1450 | F30: 1450 | G30: 1450 | H30: 1450 | I30: 1450 | J30: 1950 | K30: 1950 | L30: 1950 | M30: 1950 | N30: 19400
A31: TOTAL Yr. 2018 | B31: =SUM(B20:B30) -> 12375 | C31: =SUM(C20:C30) -> 12375 | D31: 12375 | E31: 12375 | F31: 12375 | G31: 12375 | H31: 14325 | I31: 15125 | J31: 18150 | K31: 18150 | L31: 14250 | M31: 14250 | N31: =SUM(B31:M31) -> 168500
A33: Year 2019 ( Unit Number ) | B33: JAN | C33: FEB | D33: MAR | E33: APR | F33: MAY | G33: JUN | H33: JUL | I33: AUG | J33: SEP | K33: OCT | L33: NOV | M33: DEC | N33: TOTAL Yr 2019
A34: # A: ( 2 BEDs / 1.5 BATHs) | B34: 1950 | C34: 1950 | D34: 1950 | E34: 1950 | F34: 1950 | G34: 1950 | H34: 1950 | I34: 1950 | J34: 1950 | K34: 1950 | L34: 1950 | M34: 1950 | N34: =SUM(B34:M34) -> 23400
A35: # B: ( 2 BEDs / 1.5 BATHs) | B35: 1950 | C35: 1950 | D35: 1950 | E35: 1950 | F35: 1950 | G35: 1950 | H35: 1950 | I35: 1950 | J35: 1950 | K35: 1950 | L35: 1950 | M35: 1950 | N35: 23400
A36: # C: ( 2 BEDs / 1.5 BATHs) | B36: VACATE | C36: 1950 | D36: 1950 | E36: 1950 | F36: 1950 | G36: 1950 | H36: 1950 | I36: 1950 | J36: 1950 | K36: 1950 | L36: 1950 | M36: 1950 | N36: 21450
A37: # D: ( 2 BEDs / 1.5 BATHs) | B37: 2250 | C37: 1950 | D37: 1950 | E37: 1950 | F37: 1950 | G37: 1950 | H37: 1950 | I37: 1950 | J37: 1950 | K37: 1950 | L37: 1950 | M37: 1950 | N37: 23700
A38: # E: ( 3 BEDs / 1.5 BATHs) | B38: VACATE | C38: 2250 | D38: 2250 | E38: 2250 | F38: 2250 | G38: 2250 | H38: 2250 | I38: 2250 | J38: 2250 | K38: 2250 | L38: 2250 | M38: 2250 | N38: 24750
A39: # F: ( 2 BEDs / 1.5 BATHs) | B39: 1950 | C39: VECATE | D39: VECATE | E39: VECATE | F39: 1950 | G39: 1950 | H39: 1950 | I39: 1950 | J39: 1950 | K39: 1950 | L39: 1950 | M39: 1950 | N39: 17550
A40: # G: ( 2 BEDs / 1.5 BATHs) | B40: VACATE | C40: 1950 | D40: 1950 | E40: 1950 | F40: 1950 | G40: 1950 | H40: 1950 | I40: 1950 | J40: 1950 | K40: 1950 | L40: 1950 | M40: 1950 | N40: 21450
A41: # H: ( 2 BEDs / 1.5 BATHs) | B41: 1950 | C41: 1950 | D41: 1950 | E41: 1950 | F41: 1950 | G41: 1950 | H41: 1950 | I41: 1950 | J41: 1950 | K41: 1950 | L41: 1950 | M41: 1950 | N41: 23400
A42: # J: ( 2 BEDs / 1.5 BATHs) | B42: VACATE | C42: 1950 | D42: 1950 | E42: 1950 | F42: 1950 | G42: 1950 | H42: 1950 | I42: 1950 | J42: 1950 | K42: 1950 | L42: 1950 | M42: 1950 | N42: 21450
A43: # K: ( 2 BEDs / 1.5 BATHs) | B43: 2250 | C43: VECATE | D43: VECATE | E43: VECATE | F43: 1950 | G43: 1950 | H43: 1950 | I43: 1950 | J43: 1950 | K43: 1950 | L43: 1950 | M43: 1950 | N43: 17850
A44: # L: ( 3 BEDs /1.5 BATHs) | B44: 1950 | C44: 2250 | D44: 2250 | E44: 2250 | F44: 2250 | G44: 2250 | H44: 2250 | I44: 2250 | J44: 2250 | K44: 2250 | L44: 2250 | M44: 2250 | N44: 26700
A45: #M: ( 2 BEDs /1.5 BATHs) | B45: 1950 | C45: 1950 | D45: 1950 | E45: 1950 | F45: 1950 | G45: 1950 | H45: 1950 | I45: 1950 | J45: 1950 | K45: 1950 | L45: 1950 | M45: 1950 | N45: 23400
A46: TOTAL Yr. 2019 | B46: =SUM(B34:B45) -> 16200 | C46: =SUM(C34:C45) -> 20100 | D46: 20100 | E46: 20100 | F46: 24000 | G46: 24000 | H46: =SUM(H34:H45) -> 24000 | I46: =SUM(I34:I45) -> 24000 | J46: 24000 | K46: =SUM(K34:K45) -> 24000 | L46: 24000 | M46: 24000 | N46: =SUM(B46:M46) -> 268500
A48: Year 2020 ( Unit Number ) | B48: JAN | C48: FEB | D48: MAR | E48: APR | F48: MAY | G48: JUN | H48: JUL | I48: AUG | J48: SEP | K48: OCT | L48: NOV | M48: DEC | N48: TOTAL Yr 2020
A49: # A: ( 2 BEDs / 1.5 BATHs) | B49: 1950 | C49: 1950 | D49: 1950 | E49: 1950 | F49: 1950 | G49: 1950 | H49: 1950 | I49: 1950 | J49: 1950 | K49: 1950 | L49: 1950 | M49: 1950 | N49: =SUM(B49:M49) -> 23400
A50: # B: ( 2 BEDs / 1.5 BATHs) | B50: 1950 | C50: 1950 | D50: 1950 | E50: 1950 | F50: 1950 | G50: 1950 | H50: 1950 | I50: 1950 | J50: 1950 | K50: 1950 | L50: 1950 | M50: 1950 | N50: 23400
A51: # C: ( 2 BEDs / 1.5 BATHs) | B51: 1950 | C51: 1950 | D51: 1950 | E51: 1950 | F51: 1950 | G51: 1950 | H51: 1950 | I51: 1950 | J51: 1950 | K51: VACANT | L51: VACANT | M51: 1950 | N51: 19500
A52: # D: ( 2 BEDs / 1.5 BATHs) | B52: 1950 | C52: 1950 | D52: 1950 | E52: 1950 | F52: 1950 | G52: 1950 | H52: 1950 | I52: 1950 | J52: 1950 | K52: 1950 | L52: 1950 | M52: 1950 | N52: 23400
A53: # E: ( 3 BEDs / 1.5 BATHs) | B53: 2250 | C53: 2250 | D53: 2250 | E53: 2250 | F53: 2250 | G53: 2250 | H53: 2250 | I53: 2250 | J53: 2250 | K53: 2250 | L53: 2250 | M53: 2250 | N53: 27000
A54: # F: ( 2 BEDs / 1.5 BATHs) | B54: 1950 | C54: 1950 | D54: 1950 | E54: 1950 | F54: 1950 | G54: 1950 | H54: 1950 | I54: 1950 | J54: 1950 | K54: 1950 | L54: 1950 | M54: 1950 | N54: 23400
A55: # G: ( 2 BEDs / 1.5 BATHs) | B55: 1950 | C55: 1950 | D55: 1950 | E55: 1950 | F55: 1950 | G55: 1950 | H55: 1950 | I55: 1950 | J55: 1950 | K55: 1950 | L55: 1950 | M55: 1950 | N55: 23400
A56: # H: ( 2 BEDs / 1.5 BATHs) | B56: 1950 | C56: 1950 | D56: 1950 | E56: 1950 | F56: 1950 | G56: 1950 | H56: 1950 | I56: 1950 | J56: 1950 | K56: 1950 | L56: 1950 | M56: 1950 | N56: 23400
A57: # J: ( 2 BEDs / 1.5 BATHs) | B57: VACANT | C57: VACANT | D57: 1950 | E57: 1950 | F57: 1950 | G57: 1950 | H57: 1950 | I57: 1950 | J57: 1950 | K57: 1950 | L57: 1950 | M57: 1950 | N57: 19500
A58: # K: ( 2 BEDs / 1.5 BATHs) | B58: 1950 | C58: 1950 | D58: 1950 | E58: 1950 | F58: 1950 | G58: 1950 | H58: 1950 | I58: 1950 | J58: 1950 | K58: 1950 | L58: 1950 | M58: 1950 | N58: 23400
A59: # L: ( 3 BEDs /1.5 BATHs) | B59: 2250 | C59: 2250 | D59: 2250 | E59: 2250 | F59: 2250 | G59: 2250 | H59: 2250 | I59: 2250 | J59: VACANT | K59: VACANT | L59: VACANT | M59: VACANT | N59: 18000
A60: #M: ( 2 BEDs /1.5 BATHs) | B60: 1950 | C60: 1950 | D60: 1950 | E60: 1950 | F60: 1950 | G60: 1950 | H60: 1950 | I60: 1950 | J60: 1950 | K60: 1950 | L60: 1950 | M60: 1950 | N60: 23400
A61: TOTAL Yr. 2020 | B61: =SUM(B49:B60) -> 22050 | C61: 22050 | D61: 24000 | E61: 24000 | F61: 24000 | G61: 24000 | H61: 24000 | I61: 24000 | J61: 21750 | K61: 19800 | L61: 19800 | M61: 21750 | N61: =SUM(B61:M61) -> 271200
A63: Year 2021 ( Unit Number ) | B63: JAN | C63: FEB | D63: MAR | E63: APR | F63: MAY | G63: JUN | H63: JUL | I63: AUG | J63: SEP | K63: OCT | L63: NOV | M63: DEC | N63: TOTAL Yr 2021
A64: # A: ( 2 BEDs / 1.5 BATHs) | B64: 1950 | C64: 1950 | D64: 1950 | E64: 1950 | F64: 1950 | G64: 1950 | H64: 1950 | I64: 1950 | J64: 1950 | K64: 1950 | L64: 1950 | M64: 1950 | N64: =SUM(B64:M64) -> 23400
A65: # B: ( 2 BEDs / 1.5 BATHs) | B65: 1950 | C65: 1950 | D65: 1950 | E65: 1950 | F65: 1950 | G65: 1950 | H65: 1950 | I65: 1950 | J65: 1950 | K65: 1950 | L65: 1950 | M65: 1950 | N65: 23400
A66: # C: ( 2 BEDs / 1.5 BATHs) | B66: 1950 | C66: 1950 | D66: 1950 | E66: 1950 | F66: 1950 | G66: 1950 | H66: 1950 | I66: 1950 | J66: 1950 | K66: 1950 | L66: 1950 | M66: 1950 | N66: 23400
A67: # D: ( 2 BEDs / 1.5 BATHs) | B67: 1950 | C67: 1950 | D67: 1950 | E67: 1950 | F67: 1950 | G67: 1950 | H67: 1950 | I67: 1950 | J67: 1950 | K67: 1950 | L67: 1950 | M67: 1950 | N67: 23400
A68: # E: ( 3 BEDs / 1.5 BATHs) | B68: 2250 | C68: 2250 | D68: 2250 | E68: 2250 | F68: 2250 | G68: 2250 | H68: 2250 | I68: 2250 | J68: 2250 | K68: 2250 | L68: 2250 | M68: 2250 | N68: 27000
A69: # F: ( 2 BEDs / 1.5 BATHs) | B69: 1950 | C69: 1950 | D69: 1950 | E69: 1950 | F69: 1950 | G69: 1950 | H69: 1950 | I69: 1950 | J69: 1950 | K69: 1950 | L69: 1950 | M69: 1950 | N69: 23400
A70: # G: ( 2 BEDs / 1.5 BATHs) | B70: 1950 | C70: 1950 | D70: 1950 | E70: 1950 | F70: 1950 | G70: 1950 | H70: 1950 | I70: 1950 | J70: 1950 | K70: 1950 | L70: 1950 | M70: 1950 | N70: 23400
A71: # H: ( 2 BEDs / 1.5 BATHs) | B71: 1950 | C71: 1950 | D71: 1950 | E71: 1950 | F71: 1950 | G71: 1950 | H71: 1950 | I71: 1950 | J71: 1950 | K71: 1950 | L71: 1950 | M71: 1950 | N71: 23400
A72: # J: ( 2 BEDs / 1.5 BATHs) | B72: 1950 | C72: 1950 | D72: 1950 | E72: 1950 | F72: 1950 | G72: 1950 | H72: 1950 | I72: 1950 | J72: 1950 | K72: 1950 | L72: 1950 | M72: 1950 | N72: 23400
A73: # K: ( 2 BEDs / 1.5 BATHs) | B73: 1950 | C73: 1950 | D73: 1950 | E73: 1950 | F73: 1950 | G73: 1950 | H73: 1950 | I73: 1950 | J73: 1950 | K73: 1950 | L73: 1950 | M73: 1950 | N73: 23400
A74: # L: ( 3 BEDs /1.5 BATHs) | B74: 2250 | C74: 2250 | D74: 2250 | E74: 2250 | F74: 2250 | G74: 2250 | H74: 2250 | I74: 2250 | J74: 2250 | K74: 2250 | L74: 2250 | M74: 2250 | N74: 27000
A75: #M: ( 2 BEDs /1.5 BATHs) | B75: 1950 | C75: 1950 | D75: 1950 | E75: 1950 | F75: 1950 | G75: 1950 | H75: 1950 | I75: 1950 | J75: 1950 | K75: 1950 | L75: 1950 | M75: 1950 | N75: 23400
A76: TOTAL Yr. 2021 | B76: =SUM(B64:B75) -> 24000 | C76: =SUM(C64:C75) -> 24000 | D76: =SUM(D64:D75) -> 24000 | E76: =SUM(E64:E75) -> 24000 | F76: =SUM(F64:F75) -> 24000 | G76: 24000 | H76: 24000 | I76: 24000 | J76: 24000 | K76: 24000 | L76: 24000 | M76: 24000 | N76: =SUM(B76:M76) -> 288000
A78: Year 2022 ( Unit Number ) | B78: JAN | C78: FEB | D78: MAR | E78: APR | F78: MAY | G78: JUN | H78: JUL | I78: AUG | J78: SEP | K78: OCT | L78: NOV | M78: DEC | N78: TOTAL Yr 2022
A79: # A: ( 2 BEDs / 1.5 BATHs) | B79: 1950 | C79: 1950 | D79: 1950 | E79: 1950 | F79: 1950 | G79: 1950 | H79: 1950 | I79: 1950 | J79: 1950 | K79: 1950 | L79: 1950 | M79: 1950 | N79: =SUM(B79:M79) -> 23400
A80: # B: ( 2 BEDs / 1.5 BATHs) | B80: 1950 | C80: 1950 | D80: 1950 | E80: 1950 | F80: 1950 | G80: 1950 | H80: 1950 | I80: 1950 | J80: 1950 | K80: 1950 | L80: 1950 | M80: 1950 | N80: 23400
A81: # C: ( 2 BEDs / 1.5 BATHs) | B81: 1950 | C81: 1950 | D81: 1950 | E81: 1950 | F81: 1950 | G81: 1950 | H81: 1950 | I81: 1950 | J81: 1950 | K81: 1950 | L81: 1950 | M81: 1950 | N81: 23400
A82: # D: ( 2 BEDs / 1.5 BATHs) | B82: 1950 | C82: 1950 | D82: 1950 | E82: 1950 | F82: 1950 | G82: 1950 | H82: 1950 | I82: 1950 | J82: 1950 | K82: 1950 | L82: 1950 | M82: 1950 | N82: 23400
A83: # E: ( 3 BEDs / 1.5 BATHs) | B83: 2250 | C83: 2250 | D83: 2250 | E83: 2250 | F83: 2250 | G83: 2250 | H83: 2250 | I83: 2250 | J83: 2250 | K83: 2250 | L83: 2250 | M83: 2250 | N83: 27000
A84: # F: ( 2 BEDs / 1.5 BATHs) | B84: 1950 | C84: 1950 | D84: 1950 | E84: 1950 | F84: 1950 | G84: 1950 | H84: 1950 | I84: 1950 | J84: 1950 | K84: 1950 | L84: 1950 | M84: 1950 | N84: 23400
A85: # G: ( 2 BEDs / 1.5 BATHs) | B85: 1950 | C85: 1950 | D85: 1950 | E85: 1950 | F85: 1950 | G85: 1950 | H85: 1950 | I85: 1950 | J85: 1950 | K85: 1950 | L85: 1950 | M85: 1950 | N85: 23400
A86: # H: ( 2 BEDs / 1.5 BATHs) | B86: 1950 | C86: 1950 | D86: 1950 | E86: 1950 | F86: 1950 | G86: 1950 | H86: 1950 | I86: 1950 | J86: 1950 | K86: 1950 | L86: 1950 | M86: 1950 | N86: 23400
A87: # J: ( 2 BEDs / 1.5 BATHs) | B87: 1950 | C87: 1950 | D87: 1950 | E87: 1950 | F87: 1950 | G87: 1950 | H87: 1950 | I87: 1950 | J87: 1950 | K87: 1950 | L87: 1950 | M87: 1950 | N87: 23400
A88: # K: ( 2 BEDs / 1.5 BATHs) | B88: 1950 | C88: 1950 | D88: 1950 | E88: 1950 | F88: 1950 | G88: 1950 | H88: 1950 | I88: 1950 | J88: 1950 | K88: 1950 | L88: 1950 | M88: 1950 | N88: 23400
A89: # L: ( 3 BEDs /1.5 BATHs) | B89: 2250 | C89: 2250 | D89: 2250 | E89: 2250 | F89: 2250 | G89: 2250 | H89: 2250 | I89: 2250 | J89: 2250 | K89: 2250 | L89: 2250 | M89: 2250 | N89: 27000
A90: #M: ( 2 BEDs /1.5 BATHs) | B90: 1950 | C90: 1950 | D90: 1950 | E90: 1950 | F90: 1950 | G90: 1950 | H90: 1950 | I90: 1950 | J90: 1950 | K90: 1950 | L90: 1950 | M90: 1950 | N90: 23400
A91: TOTAL Yr. 2022 | B91: =SUM(B79:B90) -> 24000 | C91: =SUM(C79:C90) -> 24000 | D91: =SUM(D79:D90) -> 24000 | E91: =SUM(E79:E90) -> 24000 | F91: =SUM(F79:F90) -> 24000 | G91: =SUM(G79:G90) -> 24000 | H91: =SUM(H79:H90) -> 24000 | I91: =SUM(I79:I90) -> 24000 | J91: =SUM(J79:J90) -> 24000 | K91: =SUM(K79:K90) -> 24000 | L91: =SUM(L79:L90) -> 24000 | M91: =SUM(M79:M90) -> 24000 | N91: =SUM(B91:M91) -> 288000
A93: Year 2023 ( Unit Number ) | B93: JAN | C93: FEB | D93: MAR | E93: APR | F93: MAY | G93: JUN | H93: JUL | I93: AUG | J93: SEP | K93: OCT | L93: NOV | M93: DEC | N93: TOTAL Yr 2023
A94: # A: ( 2 BEDs / 1.5 BATHs) | B94: 1950 | C94: 1950 | D94: 1950 | E94: 1950 | F94: 1950 | G94: 1950 | H94: 1950 | I94: 1950 | J94: 1950 | K94: VACANT | L94: VACANT | M94: VACANT | N94: =SUM(B94:M94) -> 17550
A95: # B: ( 2 BEDs / 1.5 BATHs) | B95: 1950 | C95: 1950 | D95: 1950 | E95: 1950 | F95: 1950 | G95: 1950 | H95: 1950 | I95: 1950 | J95: 1950 | K95: 2100 | L95: 2100 | M95: 2100 | N95: 23850
A96: # C: ( 2 BEDs / 1.5 BATHs) | B96: 1950 | C96: 1950 | D96: 1950 | E96: 1950 | F96: 1950 | G96: 1950 | H96: 1950 | I96: 1950 | J96: 1950 | K96: 2100 | L96: 2100 | M96: 2100 | N96: 23850
A97: # D: ( 2 BEDs / 1.5 BATHs) | B97: 1950 | C97: 1950 | D97: 1950 | E97: 1950 | F97: 1950 | G97: 1950 | H97: 1950 | I97: 1950 | J97: 1950 | K97: 2100 | L97: 2100 | M97: 2100 | N97: 23850
A98: # E: ( 3 BEDs / 1.5 BATHs) | B98: 2250 | C98: 2250 | D98: 2250 | E98: 2250 | F98: 2250 | G98: 2250 | H98: 2250 | I98: 2250 | J98: 2250 | K98: 2430 | L98: 2430 | M98: 2430 | N98: 27540
A99: # F: ( 2 BEDs / 1.5 BATHs) | B99: 1950 | C99: 1950 | D99: 1950 | E99: 1950 | F99: 1950 | G99: 1950 | H99: 1950 | I99: 1950 | J99: 1950 | K99: 2100 | L99: 2100 | M99: 2100 | N99: 23850
A100: # G: ( 2 BEDs / 1.5 BATHs) | B100: 1950 | C100: 1950 | D100: 1950 | E100: 1950 | F100: 1950 | G100: 1950 | H100: 1950 | I100: 1950 | J100: 1950 | K100: 2100 | L100: 2100 | M100: 2100 | N100: 23850
A101: # H: ( 2 BEDs / 1.5 BATHs) | B101: 1950 | C101: 1950 | D101: 1950 | E101: 1950 | F101: 1950 | G101: 1950 | H101: 1950 | I101: 1950 | J101: 1950 | K101: 2100 | L101: 2100 | M101: 2100 | N101: 23850
A102: # J: ( 2 BEDs / 1.5 BATHs) | B102: 1950 | C102: 1950 | D102: 1950 | E102: VACANT | F102: VACANT | G102: VACANT | H102: VACANT | I102: VACANT | J102: VACANT | K102: VACANT | L102: VACANT | M102: VACANT | N102: 5850
A103: # K: ( 2 BEDs / 1.5 BATHs) | B103: 1950 | C103: 1950 | D103: 1950 | E103: 1950 | F103: 1950 | G103: 1950 | H103: 1950 | I103: 1950 | J103: 1950 | K103: 2100 | L103: 2100 | M103: 2100 | N103: 23850
A104: # L: ( 3 BEDs /1.5 BATHs) | B104: 2250 | C104: 2250 | D104: 2250 | E104: 2250 | F104: 2250 | G104: 2250 | H104: 2250 | I104: 2250 | J104: 2250 | K104: 2430 | L104: 2430 | M104: 2430 | N104: 27540
A105: #M: ( 2 BEDs /1.5 BATHs) | B105: 1950 | C105: 1950 | D105: 1950 | E105: 1950 | F105: 1950 | G105: 1950 | H105: 1950 | I105: 1950 | J105: 1950 | K105: 2100 | L105: 2100 | M105: 2100 | N105: 23850
A106: TOTAL Yr. 2023 | B106: =SUM(B94:B105) -> 24000 | C106: =SUM(C94:C105) -> 24000 | D106: =SUM(D94:D105) -> 24000 | E106: =SUM(E94:E105) -> 22050 | F106: =SUM(F94:F105) -> 22050 | G106: =SUM(G94:G105) -> 22050 | H106: 22050 | I106: 22050 | J106: 22050 | K106: 21660 | L106: 21660 | M106: 21660 | N106: =SUM(B106:M106) -> 269280
A108: Year 2024 ( Unit Number ) | B108: JAN | C108: FEB | D108: MAR | E108: APR | F108: MAY | G108: JUN | H108: JUL | I108: AUG | J108: SEP | K108: OCT | L108: NOV | M108: DEC | N108: TOTAL Yr 2024
A109: # A: ( 2 BEDs / 1.5 BATHs) | B109: VACANT | C109: 1187.07 | D109: 2295 | E109: 2295 | F109: 2295 | G109: 2295 | H109: 2295 | I109: 2295 | J109: VACANT | K109: VACANT | L109: VACANT | M109: 2350 | N109: =SUM(B109:M109) -> 17307.07
A110: # B: ( 2 BEDs / 1.5 BATHs) | B110: 2100 | C110: 2100 | D110: 2100 | E110: 2100 | F110: 2100 | G110: 2100 | H110: 2100 | I110: 2100 | J110: 2100 | K110: 2280 | L110: 2280 | M110: 2280 | N110: =SUM(B110:M110) -> 25740
A111: # C: ( 2 BEDs / 1.5 BATHs) | B111: 2100 | C111: 2100 | D111: 2100 | E111: 2100 | F111: 2100 | G111: 2100 | H111: 2100 | I111: 2100 | J111: 2100 | K111: 2280 | L111: 2280 | M111: 2280 | N111: 25740
A112: # D: ( 2 BEDs / 1.5 BATHs) | B112: 2100 | C112: 2100 | D112: VACANT | E112: VACANT | F112: VACANT | G112: 861.67 | H112: 2350 | I112: 2350 | J112: 2350 | K112: 2350 | L112: 2350 | M112: 2350 | N112: 19161.67
A113: # E: ( 3 BEDs / 1.5 BATHs) | B113: 2430 | C113: 2430 | D113: 2430 | E113: 2430 | F113: 2430 | G113: 2430 | H113: 2430 | I113: 2430 | J113: 2430 | K113: 2639 | L113: 2639 | M113: 2639 | N113: 29787
A114: # F: ( 2 BEDs / 1.5 BATHs) | B114: 2100 | C114: 2100 | D114: 2100 | E114: 2100 | F114: 2100 | G114: 2100 | H114: 2100 | I114: 2100 | J114: 2100 | K114: 2280 | L114: 2280 | M114: 2280 | N114: 25740
A115: # G: ( 2 BEDs / 1.5 BATHs) | B115: 2100 | C115: 2100 | D115: 2100 | E115: 2100 | F115: 2100 | G115: 2100 | H115: 2100 | I115: 2100 | J115: 2100 | K115: 2280 | L115: 2280 | M115: 2280 | N115: 25740
A116: # H: ( 2 BEDs / 1.5 BATHs) | B116: 2100 | C116: 2100 | D116: 2100 | E116: 2100 | F116: 2100 | G116: 2100 | H116: 2100 | I116: 2100 | J116: 2100 | K116: 2280 | L116: 2280 | M116: 2280 | N116: 25740
A117: # J: ( 2 BEDs / 1.5 BATHs) | B117: VACANT | C117: VACANT | D117: 2395 | E117: 2395 | F117: 2395 | G117: 2395 | H117: 2395 | I117: 2395 | J117: 2395 | K117: 2395 | L117: 2395 | M117: 2395 | N117: 23950
A118: # K: ( 2 BEDs / 1.5 BATHs) | B118: 2100 | C118: 2100 | D118: 2100 | E118: 2100 | F118: 2100 | G118: 2100 | H118: 2100 | I118: 2100 | J118: 2100 | K118: 2280 | L118: 2280 | M118: 2280 | N118: 25740
A119: # L: ( 3 BEDs /1.5 BATHs) | B119: 2430 | C119: 2430 | D119: 2430 | E119: 2430 | F119: 2430 | G119: 2430 | H119: 2430 | I119: 2430 | J119: 2430 | K119: 2639 | L119: 2639 | M119: 2639 | N119: 29787
A120: #M: ( 2 BEDs /1.5 BATHs) | B120: 2100 | C120: 2100 | D120: 2100 | E120: 2100 | F120: 2100 | G120: 2100 | H120: 2100 | I120: 2100 | J120: 2100 | K120: 2280 | L120: 2280 | M120: 2280 | N120: 25740
A121: TOTAL Yr 2024: | B121: =SUM(B109:B120) -> 21660 | C121: =SUM(C109:C120) -> 22847.07 | D121: =SUM(D109:D120) -> 24250 | E121: =SUM(E109:E120) -> 24250 | F121: =SUM(F109:F120) -> 24250 | G121: =SUM(G109:G120) -> 25111.67 | H121: 26600 | I121: 26600 | J121: 24305 | K121: 25983 | L121: 25983 | M121: 28333 | N121: 300172.74
A123: Year 2025 ( Unit Number ) | B123: JAN | C123: FEB | D123: MAR | E123: APR | F123: MAY | G123: JUN | H123: JUL | I123: AUG | J123: SEP | K123: OCT
A124: # A: ( 2 BEDs / 1.5 BATHs) | B124: 2350 | C124: 2350 | D124: 2350 | E124: 2350 | F124: 2350 | G124: 2350 | H124: 2350 | I124: 2350 | J124: 2350 | K124: 2350
A125: # B: ( 2 BEDs / 1.5 BATHs) | B125: 2280 | C125: 2280 | D125: 2280 | E125: 2280 | F125: 2280 | G125: 2280 | H125: 2280 | I125: 2280 | J125: 2280 | K125: 2280
A126: # C: ( 2 BEDs / 1.5 BATHs) | B126: 2280 | C126: 2280 | D126: 2280 | E126: 2280 | F126: 2280 | G126: 2280 | H126: 2280 | I126: VACANT | J126: VACANT | K126: VACANT
A127: # D: ( 2 BEDs / 1.5 BATHs) | B127: 2350 | C127: 2350 | D127: 2350 | E127: 2350 | F127: 2350 | G127: 2350 | H127: 2550 | I127: 2550 | J127: 2550 | K127: 2550
A128: # E: ( 3 BEDs / 1.5 BATHs) | B128: 2639 | C128: 2639 | D128: 2639 | E128: 2639 | F128: 2639 | G128: 2639 | H128: 2639 | I128: 2639 | J128: 2639 | K128: 2639
A129: # F: ( 2 BEDs / 1.5 BATHs) | B129: 2280 | C129: 2280 | D129: 2280 | E129: 2280 | F129: 2280 | G129: 2280 | H129: 2280 | I129: 2280 | J129: 2280 | K129: 2280
A130: # G: ( 2 BEDs / 1.5 BATHs) | B130: 2280 | C130: 2280 | D130: 2280 | E130: 2280 | F130: 2280 | G130: 2280 | H130: 2280 | I130: 2280 | J130: 2280 | K130: 2280
A131: # H: ( 2 BEDs / 1.5 BATHs) | B131: 2280 | C131: 2280 | D131: 2280 | E131: 2280 | F131: 2280 | G131: 2280 | H131: 2280 | I131: 2280 | J131: 2280 | K131: 2280
A132: # J: ( 2 BEDs / 1.5 BATHs) | B132: 2395 | C132: 2395 | D132: 2395 | E132: 2395 | F132: VACANT | G132: VACANT | H132: VACANT | I132: VACANT | J132: 2600 | K132: 2600
A133: # K: ( 2 BEDs / 1.5 BATHs) | B133: 2280 | C133: 2280 | D133: VACANT | E133: VACANT | F133: VACANT | G133: VACANT | H133: 2495 | I133: 2495 | J133: 2495 | K133: 2495
A134: # L: ( 3 BEDs /1.5 BATHs) | B134: 2639 | C134: 2639 | D134: 2639 | E134: 2639 | F134: 2639 | G134: 2639 | H134: 2639 | I134: 2639 | J134: 2639 | K134: 2639
A135: #M: ( 2 BEDs /1.5 BATHs) | B135: 2280 | C135: 2280 | D135: 2280 | E135: 2280 | F135: 2280 | G135: 2280 | H135: 2280 | I135: 2280 | J135: 2280 | K135: VACANT
A136: TOTAL Yr 2025: | B136: =SUM(B124:B135) -> 28333 | C136: 28333 | D136: =SUM(D124:D135) -> 26053 | E136: 26053 | F136: 23658 | G136: 23658 | H136: 26353 | I136: 24073 | J136: =SUM(J124:J135) -> 26673 | K136: =SUM(K124:K135) -> 24393
